bitfinex/quotes_SOLUSD_20220211
["timestamp","ask_amount","ask_price","bid_price","bid_amount"]
[1644622910317,5.182,96.529,96.44,0.024]
[1644622911520,5.182,96.529,96.441,2.38366791]
[1644622911720,23.7045,96.537,96.45,0.024]
[1644622912220,44.30134619,96.538,96.46,15.5537]
[1644622912419,5.181,96.536,96.46,15.5537]
[1644622912617,5.181,96.537,96.47,0.024]
[1644622912817,5.181,96.535,96.47,0.024]
[1644622913017,5.181,96.537,96.47,0.024]
[1644622914020,15.5549,96.53,96.47,0.024]
[1644622914217,5.181,96.529,96.47,0.024]
[1644622914419,5.181,96.536,96.47,0.024]
[1644622914619,5.181,96.537,96.47,0.024]
[1644622915025,15.5568,96.52,96.47,0.024]
[1644622915225,5.181,96.519,96.47,0.024]
[1644622916126,15.555,96.53,96.47,0.024]
[1644622916332,5.181,96.529,96.47,0.024]
[1644622916529,15.555,96.53,96.47,0.024]
[1644622917732,5.181,96.529,96.47,0.024]
[1644622923850,5.181,96.529,96.45,16.99567303]
[1644622924049,5.181,96.529,96.46,0.024]
[1644622925850,5.181,96.529,96.46,15.5787]
[1644622932357,15.555,96.53,96.461,5.181]
[1644622932960,5.181,96.549,96.47,15.5531]
[1644622933160,5.181,96.549,96.462,2.38366791]
[1644622933161,5.181,96.567,96.471,28.798]
[1644622933364,5.181,96.581,96.472,1.43967303]
[1644622933561,1.46433968,96.607,96.487,1.43967303]
[1644622933562,5.18,96.576,96.487,1.43967303]
[1644622933762,0.05418151,96.6,96.494,1.43967303]
[1644622933961,5.178,96.599,96.496,1.43967303]
[1644622934166,40.37951082,96.605,96.497,30.81327303]
[1644622934362,0.05418151,96.59,96.52,15.5429]
[1644622934565,0.05418151,96.6,96.498,5.178]
[1644622934761,5.179,96.589,96.498,5.178]
[1644622935064,0.05418151,96.58,96.498,5.178]
[1644622935262,5.179,96.579,96.498,5.178]
[1644622935463,0.05418151,96.59,96.498,5.178]
[1644622935661,5.178,96.589,96.498,5.178]
[1644622935861,0.05418151,96.58,96.498,5.178]
[1644622936263,0.05418151,96.58,96.5,15.5481]
[1644622936663,0.05418151,96.58,96.501,2.38366791]
[1644622936864,5.179,96.579,96.501,2.38366791]
[1644622938164,5.179,96.579,96.497,24.1956]
[1644622938365,5.179,96.579,96.51,15.5467]
[1644622938566,5.179,96.579,96.495,41.41665714]
[1644622938966,2.38366791,96.578,96.495,41.41665714]
[1644622939165,38.41978642,96.576,96.495,41.41665714]
[1644622939367,5.179,96.575,96.495,41.41665714]
[1644622939569,15.5482,96.57,96.495,41.41665714]
[1644622939767,5.179,96.569,96.495,41.41665714]
[1644622940069,7.56266791,96.569,96.495,41.41665714]
[1644622940271,2.38366791,96.568,96.495,41.41665714]
[1644622940468,15.5513,96.55,96.495,41.41665714]
[1644622940668,5.18,96.549,96.495,41.41665714]
[1644622940869,15.5513,96.55,96.495,41.41665714]
[1644622943474,5.18,96.549,96.495,41.41665714]
[1644622944177,4.68,96.549,96.495,41.41665714]
[1644622949179,15.5526,96.54,96.481,5.18]
[1644622949380,5.18,96.539,96.473,25.21837303]
[1644622949777,5.18,96.539,96.473,23.7787]
[1644622949978,5.181,96.547,96.473,23.7787]
[1644622950378,48.54084505,96.546,96.474,47.00331048]
[1644622950780,15.5542,96.53,96.474,47.00331048]
[1644622951379,5.181,96.529,96.474,47.00331048]
[1644622951982,5.181,96.529,96.469,1.43967303]
[1644622952181,15.5562,96.52,96.469,1.43967303]
[1644622952581,5.181,96.519,96.46,1.46367303]
[1644622952983,5.181,96.519,96.462,42.51359789]
[1644622953485,15.5562,96.52,96.462,42.51359789]
[1644622953681,15.5562,96.52,96.462,43.95327092]
[1644622953881,15.5562,96.52,96.463,1.43967303]
[1644622954083,15.5562,96.52,96.462,43.95327092]
[1644622954482,15.5562,96.52,96.462,42.51359789]
[1644622955484,5.181,96.519,96.462,42.51359789]
[1644622955788,39.78273534,96.509,96.462,42.51359789]
[1644622957488,39.78273534,96.509,96.46,0.024]
[1644622957688,15.5588,96.5,96.46,0.024]
[1644622957892,5.182,96.499,96.46,0.024]
[1644622958091,5.182,96.499,96.443,24.30887303]
[1644622958092,5.182,96.499,96.443,22.8692]
[1644622958292,5.182,96.508,96.443,22.8692]
[1644622958492,5.182,96.498,96.45,0.024]
[1644622958689,5.182,96.508,96.443,22.8692]
[1644622958891,5.182,96.497,96.45,0.024]
[1644622959089,39.78273534,96.509,96.443,22.8692]
[1644622959090,5.182,96.508,96.443,22.8692]
[1644622959292,5.182,96.496,96.45,0.024]
[1644622959492,5.182,96.508,96.443,22.8692]
[1644622959790,15.5604,96.49,96.45,0.024]
[1644622959991,15.5604,96.49,96.443,22.8692]
[1644622960191,5.183,96.489,96.443,22.8692]
[1644622960391,15.5604,96.49,96.443,22.8692]
[1644622961693,15.5604,96.49,96.444,39.15389645]
[1644622962195,22.8051,96.508,96.445,5.183]
[1644622962397,39.78273534,96.509,96.45,0.024]
[1644622962595,39.78273534,96.509,96.451,5.182]
[1644622962997,39.78273534,96.509,96.45,0.024]
[1644622963815,39.78273534,96.509,96.45,15.581]
[1644622964415,39.78273534,96.509,96.451,5.182]
[1644622965922,39.78273534,96.509,96.451,6.62167303]
[1644622966219,39.78273534,96.509,96.451,5.182]
[1644622966419,5.182,96.508,96.451,5.182]
[1644622968022,15.5575,96.5,96.451,5.182]
[1644622968221,15.5575,96.5,96.45,0.024]
[1644622968421,5.182,96.499,96.444,39.15389645]
[1644622968820,5.182,96.508,96.444,39.15389645]
[1644622969024,5.182,96.508,96.45,0.024]
[1644622969722,15.5592,96.49,96.45,0.024]
[1644622969919,15.5592,96.49,96.445,5.182]
[1644622971127,15.5592,96.49,96.444,39.15389645]
[1644622973132,5.183,96.489,96.444,39.15389645]
[1644622974435,15.5592,96.49,96.444,39.15389645]
[1644622975235,15.5592,96.49,96.446,1.43967303]
[1644622975734,15.5592,96.49,96.443,24.30887303]
[1644622976837,15.5592,96.49,96.444,1.43967303]
[1644622977238,15.5592,96.49,96.446,1.43967303]
[1644622977441,5.183,96.489,96.446,1.43967303]
[1644622977640,15.5592,96.49,96.446,1.43967303]
[1644622977840,15.5572,96.5,96.448,1.43967303]
[1644622978041,15.5572,96.5,96.45,0.024]
[1644622978442,15.5572,96.5,96.449,1.43967303]
[1644622978845,15.5572,96.5,96.45,15.5572]
[1644622979042,15.5572,96.5,96.45,15.5812]
[1644622979247,15.5572,96.5,96.452,1.43967303]
[1644622980045,15.5572,96.5,96.453,1.43967303]
[1644622980645,15.5572,96.5,96.452,1.43967303]
[1644622980846,5.182,96.499,96.452,1.43967303]
[1644622981246,15.5584,96.49,96.453,1.43967303]
[1644622981451,15.5584,96.49,96.443,22.8692]
[1644622981452,15.5584,96.49,96.456,1.43967303]
[1644622981647,15.5584,96.49,96.453,1.43967303]
[1644622981848,15.5584,96.49,96.454,1.43967303]
[1644622983568,15.5584,96.49,96.471,0.51458777]
[1644622987768,15.5571,96.5,96.471,0.51458777]
[1644622987968,5.182,96.499,96.471,0.51458777]
[1644622988170,10.69,96.499,96.471,0.51458777]
[1644622988670,5.182,96.498,96.471,0.51458777]
[1644622988870,15.5583,96.49,96.471,0.51458777]
[1644622989071,5.182,96.489,96.471,0.51458777]
[1644622996395,17.0,96.488,96.45,0.024]
[1644622996603,15.5646,96.48,96.424,4.38226803]
[1644622996798,34.26192689,96.478,96.4,2.87016446]
[1644622997000,5.184,96.477,96.415,44.90502506]
[1644622997598,34.26192689,96.478,96.416,5.184]
[1644622997998,15.5682,96.47,96.419,5.184]
[1644622998198,23.5974,96.498,96.419,5.184]
[1644622998398,23.5974,96.498,96.419,2.38366791]
[1644622998599,14.87,96.49,96.402,5.183]
[1644622998801,14.87,96.49,96.387,2.87016446]
[1644622998998,5.183,96.489,96.388,5.183]
[1644622999197,15.5672,96.47,96.388,5.183]
[1644622999399,73.90611077,96.469,96.408,45.50274256]
[1644622999801,72.83611077,96.469,96.408,45.50274256]
[1644623000403,72.83611077,96.469,96.384,23.0513]
[1644623000599,15.5669,96.46,96.384,23.0513]
[1644623001425,43.81951077,96.469,96.419,34.91205575]
[1644623003124,43.81951077,96.469,96.401,5.184]
[1644623003325,43.81951077,96.469,96.402,23.1006]
[1644623003525,43.81951077,96.469,96.403,5.184]
[1644623003723,5.184,96.468,96.402,23.1006]
[1644623004324,15.5652,96.46,96.402,23.1006]
[1644623004528,5.184,96.459,96.412,42.32976347]
[1644623004729,15.5652,96.46,96.412,42.32976347]
[1644623006128,5.184,96.459,96.412,42.32976347]
[1644623006330,45.46121148,96.449,96.412,42.32976347]
[1644623007934,45.46121148,96.449,96.38,15.5666]
[1644623008130,45.46121148,96.449,96.381,23.7924]
[1644623008330,45.46121148,96.449,96.39,15.5653]
[1644623008931,45.46121148,96.449,96.412,42.33084312]
[1644623009329,23.8616,96.467,96.412,42.33084312]
[1644623009532,5.184,96.479,96.412,42.33084312]
[1644623009734,5.184,96.489,96.413,22.6004]
[1644623009936,5.183,96.497,96.413,22.6004]
[1644623010132,5.183,96.497,96.414,5.183]
[1644623010332,40.86651076,96.496,96.414,5.183]
[1644623010536,28.4265,96.495,96.414,5.183]
[1644623011733,15.5617,96.49,96.414,5.183]
[1644623011937,15.5617,96.49,96.419,5.183]
[1644623012136,5.183,96.489,96.413,22.6004]
[1644623012335,5.183,96.494,96.42,0.024]
[1644623012734,23.2435,96.495,96.43,0.024]
[1644623012936,5.183,96.493,96.43,0.024]
[1644623013136,7.56666791,96.494,96.43,0.024]
[1644623013736,15.562,96.48,96.43,0.024]
[1644623013939,37.25585073,96.478,96.42,0.024]
[1644623014136,5.184,96.477,96.42,0.024]
[1644623017341,5.184,96.479,96.42,15.5849]
[1644623017541,23.2435,96.495,96.43,0.024]
[1644623017744,66.78498151,96.53,96.413,22.6004]
[1644623017745,5.184,96.511,96.42,0.024]
[1644623017946,5.183,96.508,96.43,0.024]
[1644623018141,23.9011,96.528,96.43,0.024]
[1644623018142,35.40556624,96.509,96.43,0.024]
[1644623018342,5.183,96.507,96.43,0.024]
[1644623018542,5.182,96.508,96.43,0.024]
[1644623018842,15.5586,96.5,96.431,38.16651836]
[1644623019243,5.183,96.499,96.431,38.16651836]
[1644623019841,5.183,96.499,96.432,23.5186]
[1644623020744,5.183,96.499,96.44,15.5573]
[1644623023449,15.5586,96.5,96.44,15.5573]
[1644623023650,5.182,96.507,96.44,15.5573]
[1644623028179,5.182,96.508,96.44,15.5573]
[1644623028385,5.182,96.529,96.46,15.5533]
[1644623028576,5.182,96.529,96.461,30.0491]
[1644623028776,0.05418151,96.53,96.461,24.8681]
[1644623028979,24.0193,96.549,96.462,5.181]
[1644623028980,0.05418151,96.54,96.462,5.181]
[1644623029184,0.05418151,96.53,96.463,40.30837856]
[1644623029378,36.36008163,96.547,96.463,40.30837856]
[1644623029379,0.05418151,96.54,96.464,5.181]
[1644623029581,0.05418151,96.53,96.464,5.181]
[1644623029778,15.60598151,96.54,96.48,15.5518]
[1644623029978,0.05418151,96.53,96.481,36.57434004]
[1644623030179,5.18,96.539,96.481,36.57434004]
[1644623031280,15.60598151,96.54,96.481,36.57434004]
[1644623034085,5.18,96.539,96.481,36.57434004]
[1644623042392,5.18,96.539,96.49,15.5503]
[1644623042589,0.05418151,96.54,96.49,15.5503]
[1644623042791,36.36008163,96.547,96.49,15.5503]
[1644623042994,5.18,96.546,96.482,23.3545]
[1644623043192,2.38366791,96.539,96.45,0.024]
[1644623043392,0.05418151,96.53,96.45,0.024]
[1644623043597,5.181,96.529,96.46,15.5548]
[1644623043797,0.05418151,96.52,96.46,15.5548]
[1644623043993,5.181,96.519,96.461,24.9118]
[1644623044197,37.63393972,96.518,96.462,46.87211196]
[1644623044597,5.181,96.517,96.462,46.87211196]
[1644623046596,15.5566,96.51,96.461,24.9118]
[1644623046800,5.182,96.509,96.461,24.9118]
[1644623047599,5.182,96.509,96.462,40.87336061]
[1644623047799,5.182,96.509,96.45,0.024]
[1644623048198,15.5579,96.5,96.45,0.024]
[1644623048399,15.5579,96.5,96.44,15.5578]
[1644623048601,5.182,96.499,96.43,0.024]
[1644623048799,37.37622472,96.497,96.43,0.024]
[1644623049000,5.183,96.496,96.43,0.024]
[1644623049601,15.5601,96.49,96.43,0.024]
[1644623049808,5.183,96.489,96.43,0.024]
[1644623050011,2.38366791,96.489,96.43,0.024]
[1644623050206,5.183,96.488,96.43,0.024]
[1644623050408,2.38366791,96.488,96.43,0.024]
[1644623050606,15.5646,96.48,96.42,0.024]
[1644623050806,5.184,96.479,96.42,0.024]
[1644623051410,35.95615094,96.478,96.42,0.024]
[1644623051609,35.95615094,96.478,96.421,5.183]
[1644623054037,5.184,96.477,96.42,15.5851]
[1644623054431,15.5618,96.48,96.421,5.184]
[1644623054632,0.05418151,96.51,96.43,15.5584]
[1644623054829,27.9226,96.539,96.431,5.182]
[1644623055036,0.05418151,96.51,96.431,5.182]
[1644623055228,0.05418151,96.53,96.432,4.43478465]
[1644623055431,0.05418151,96.51,96.434,42.82805663]
[1644623055631,0.05418151,96.53,96.435,32.15658465]
[1644623055831,0.05418151,96.51,96.45,0.024]
[1644623056331,0.05418151,96.53,96.45,0.024]
[1644623056531,0.05418151,96.51,96.46,15.5521]
[1644623056732,0.05418151,96.53,96.461,43.34766945]
[1644623056933,0.05418151,96.53,96.461,45.73133736]
[1644623057133,0.05418151,96.56,96.462,32.12916791]
[1644623057332,5.18,96.559,96.462,32.12916791]
[1644623057532,0.05418151,96.55,96.463,2.38366791]
[1644623057734,0.05418151,96.56,96.464,28.733]
[1644623057933,0.05418151,96.54,96.464,28.733]
[1644623058131,0.05418151,96.56,96.465,2.38366791]
[1644623058335,0.05418151,96.53,96.466,5.18]
[1644623058539,0.05418151,96.55,96.466,5.18]
[1644623058734,0.05418151,96.55,96.48,15.5479]
[1644623058934,39.07462068,96.548,96.482,37.12230268]
[1644623059135,0.05418151,96.54,96.482,37.12230268]
[1644623059335,39.07462068,96.548,96.483,7.56366791]
[1644623059535,0.05418151,96.54,96.483,7.56366791]
[1644623059735,0.05418151,96.54,96.5,15.5477]
[1644623059938,39.07462068,96.548,96.501,39.01762068]
[1644623060533,39.07462068,96.548,96.5,15.5477]
[1644623060738,5.18,96.547,96.5,15.5477]
[1644623060937,39.07462068,96.548,96.49,15.5496]
[1644623061135,0.05418151,96.54,96.49,15.5496]
[1644623061337,5.18,96.539,96.49,15.5496]
[1644623061537,5.18,96.539,96.491,42.92173935]
[1644623061737,0.05418151,96.54,96.491,42.92173935]
[1644623062037,5.18,96.539,96.491,42.92173935]
[1644623062843,5.18,96.539,96.5,15.5484]
[1644623063457,0.05418151,96.56,96.501,2.38366791]
[1644623063645,0.05418151,96.57,96.501,7.56266791]
[1644623063842,0.05418151,96.57,96.52,15.5446]
[1644623064042,5.179,96.569,96.52,15.5446]
[1644623064241,5.178,96.573,96.52,15.5446]
[1644623064445,43.19942631,96.572,96.521,35.25997223]
[1644623064647,5.178,96.571,96.521,35.25997223]
[1644623066149,43.19942631,96.572,96.521,35.25997223]
[1644623066547,5.178,96.579,96.521,35.25997223]
[1644623066747,5.178,96.579,96.53,15.5428]
[1644623066949,0.05418151,96.58,96.53,15.5428]
[1644623067147,0.05418151,96.59,96.53,15.5428]
[1644623067350,5.178,96.589,96.53,15.5428]
[1644623067548,38.88879985,96.588,96.53,15.5428]
[1644623067747,5.178,96.587,96.53,15.5428]
[1644623068354,5.178,96.587,96.54,15.5387]
[1644623068557,38.88879985,96.588,96.541,48.37639119]
[1644623069554,0.05418151,96.59,96.541,48.37639119]
[1644623069753,0.05418151,96.6,96.55,15.5387]
[1644623069956,0.05418151,96.62,96.55,15.5387]
[1644623070453,5.176,96.619,96.55,15.5387]
[1644623070654,0.05418151,96.61,96.55,15.5387]
[1644623072656,5.176,96.609,96.55,15.5387]
[1644623073062,0.05418151,96.63,96.57,15.533]
[1644623073262,0.05418151,96.64,96.57,15.533]
[1644623073460,0.05418151,96.64,96.571,7.55866791]
[1644623073662,0.05418151,96.68,96.571,7.55866791]
[1644623073866,5.174,96.679,96.572,2.38366791]
[1644623074059,0.05418151,96.67,96.59,15.5311]
[1644623074259,0.05418151,96.67,96.592,43.72643382]
[1644623074461,5.174,96.669,96.592,43.72643382]
[1644623074660,0.05418151,96.66,96.592,43.72643382]
[1644623075063,44.87051542,96.658,96.592,43.72643382]
[1644623075459,5.174,96.657,96.592,43.72643382]
[1644623075660,5.174,96.657,96.574,23.2346]
[1644623075859,0.05418151,96.65,96.574,23.2346]
[1644623076062,5.175,96.649,96.531,5.175]
[1644623076260,0.05418151,96.64,96.531,5.175]
[1644623076660,0.05418151,96.64,96.532,45.99983601]
[1644623076861,5.176,96.639,96.533,24.5136]
[1644623077062,0.05418151,96.63,96.533,24.5136]
[1644623077666,2.38366791,96.629,96.533,24.5136]
[1644623077865,5.176,96.628,96.533,24.5136]
[1644623078162,5.176,96.628,96.532,45.99983601]
[1644623078365,2.38366791,96.627,96.532,45.99983601]
[1644623078562,14.92418151,96.63,96.533,5.176]
[1644623078863,46.6173124,96.619,96.54,15.5401]
[1644623079160,0.05418151,96.61,96.54,15.5401]
[1644623079363,0.05418151,96.61,96.541,5.176]
[1644623079560,0.05418151,96.61,96.535,5.176]
[1644623079787,0.05418151,96.61,96.535,2.38366791]
[1644623079985,5.176,96.609,96.536,2.38366791]
[1644623080290,0.05418151,96.61,96.532,45.99983601]
[1644623080489,0.05418151,96.61,96.533,5.176]
[1644623080688,0.05418151,96.61,96.533,7.55966791]
[1644623080890,0.05418151,96.61,96.534,2.38366791]
[1644623081091,0.05418151,96.61,96.535,5.176]
[1644623081488,0.05418151,96.61,96.54,15.5403]
[1644623081891,0.05418151,96.61,96.541,2.38366791]
[1644623082090,0.05418151,96.63,96.542,24.423]
[1644623082288,5.176,96.629,96.542,24.423]
[1644623082490,5.176,96.629,96.543,7.55966791]
[1644623082895,5.176,96.629,96.56,15.5359]
[1644623083093,0.05418151,96.63,96.561,5.176]
[1644623083292,0.05418151,96.66,96.57,51.7697]
[1644623083590,5.175,96.659,96.571,5.174]
[1644623083790,42.01825161,96.658,96.571,7.55766791]
[1644623083993,5.175,96.657,96.58,15.5309]
[1644623084195,5.175,96.657,96.581,5.174]
[1644623084396,5.175,96.657,96.572,41.93931305]
[1644623084397,5.175,96.657,96.573,5.175]
[1644623084592,5.175,96.657,96.573,7.55866791]
[1644623084793,5.175,96.657,96.574,2.38366791]
[1644623084998,5.175,96.657,96.575,5.175]
[1644623085194,5.175,96.657,96.6,15.5311]
[1644623085397,5.175,96.657,96.601,45.76000811]
[1644623087801,5.174,96.669,96.61,15.5295]
[1644623088001,5.174,96.656,96.61,15.5295]
[1644623088297,5.173,96.669,96.61,15.5295]
[1644623088500,37.63497528,96.668,96.601,45.76000811]
[1644623088797,0.05418151,96.66,96.601,45.76000811]
[1644623088998,5.174,96.659,96.601,45.76000811]
[1644623089200,5.174,96.659,96.59,15.5327]
[1644623089201,7.55766791,96.659,96.569,5.174]
[1644623089399,7.55766791,96.659,96.533,52.9913]
[1644623089598,2.38366791,96.658,96.533,5.175]
[1644623089798,5.176,96.657,96.51,51.8044]
[1644623089999,185.91,96.65,96.52,15.5444]
[1644623090199,14.92418151,96.64,96.521,47.69412741]
[1644623090397,37.10211636,96.609,96.521,47.69412741]
[1644623090599,0.05418151,96.6,96.521,47.69412741]
[1644623090797,5.178,96.599,96.521,47.69412741]
[1644623091097,7.56166791,96.599,96.521,47.69412741]
[1644623091300,2.38366791,96.598,96.521,47.69412741]
[1644623091499,5.178,96.597,96.521,47.69412741]
[1644623091698,15.5452,96.58,96.521,47.69412741]
[1644623091898,43.94371997,96.579,96.492,5.176]
[1644623092098,0.05418151,96.57,96.492,5.176]
[1644623092299,5.179,96.569,96.492,5.176]
[1644623092700,15.5492,96.56,96.492,5.176]
[1644623092902,15.5492,96.56,96.493,46.83189998]
[1644623093302,0.05418151,96.57,96.5,15.5474]
[1644623093501,5.179,96.569,96.5,15.5474]
[1644623093701,15.5458,96.57,96.501,5.179]
[1644623093900,0.05418151,96.56,96.495,5.179]
[1644623094101,0.05418151,96.56,96.494,5.179]
[1644623094801,0.05418151,96.56,96.51,15.5458]
[1644623095000,5.179,96.559,96.511,35.49652997]
[1644623095202,39.17332837,96.558,96.511,35.49652997]
[1644623095402,44.35232837,96.558,96.511,35.49652997]
[1644623095802,5.179,96.558,96.511,35.49652997]
[1644623096707,36.73971435,96.557,96.511,35.49652997]
[1644623096911,5.179,96.556,96.511,35.49652997]
[1644623098115,15.5458,96.57,96.511,35.49652997]
[1644623099110,47.88337175,96.569,96.511,35.49652997]
[1644623099309,53.06237175,96.569,96.511,35.49652997]
[1644623099511,15.5477,96.56,96.511,35.49652997]
[1644623099811,5.179,96.559,96.511,35.49652997]
[1644623100011,5.179,96.559,96.471,5.179]
[1644623100213,0.05418151,96.56,96.471,5.179]
[1644623100411,5.18,96.558,96.457,5.18]
[1644623100611,5.18,96.559,96.458,4.43054473]
[1644623100814,5.18,96.559,96.459,5.18]
[1644623101013,5.18,96.559,96.46,45.60898203]
[1644623101213,5.18,96.559,96.461,5.18]
[1644623101614,15.5491,96.55,96.481,44.96245708]
[1644623101814,5.18,96.549,96.481,44.96245708]
[1644623102115,15.5491,96.55,96.481,44.96245708]
[1644623103713,15.5491,96.55,96.49,15.5492]
[1644623103916,5.18,96.549,96.49,15.5492]
[1644623104115,15.5491,96.55,96.49,15.5492]
[1644623104315,5.18,96.549,96.49,15.5492]
[1644623105016,15.5507,96.54,96.482,5.18]
[1644623105215,15.5507,96.54,96.481,44.96245708]
[1644623105216,39.63560867,96.539,96.481,44.96245708]
[1644623105816,5.18,96.539,96.481,44.96245708]
[1644623106118,15.5524,96.53,96.481,44.96245708]
[1644623106323,5.181,96.529,96.481,44.96245708]
[1644623106522,7.56366791,96.538,96.481,44.96245708]
[1644623106723,35.46272428,96.539,96.481,44.96245708]
[1644623106923,5.18,96.538,96.481,44.96245708]
[1644623107125,5.18,96.538,96.451,5.18]
[1644623107325,15.5541,96.52,96.426,2.87016446]
[1644623107525,14.87,96.51,96.45,0.024]
[1644623107725,5.182,96.509,96.45,0.024]
[1644623107925,5.182,96.509,96.43,0.024]
[1644623108125,48.19165776,96.508,96.43,0.024]
[1644623108325,5.183,96.507,96.43,0.024]
[1644623108732,15.5642,96.5,96.43,0.024]
[1644623108935,14.87,96.49,96.43,0.024]
[1644623109129,14.87,96.49,96.42,0.024]
[1644623109328,46.92616402,96.489,96.42,0.024]
[1644623110030,17.0,96.479,96.418,7.496e-05]
[1644623110236,14.87,96.47,96.418,7.496e-05]
[1644623110428,5.184,96.469,96.418,7.496e-05]
[1644623110828,7.56766791,96.469,96.418,7.496e-05]
[1644623111032,41.74273241,96.468,96.418,7.496e-05]
[1644623111231,5.184,96.467,96.405,40.32371238]
[1644623111432,17.0,96.466,96.358,5.184]
[1644623111629,15.569,96.46,96.358,5.184]
[1644623111831,200.78,96.45,96.326,2.87016446]
[1644623112032,185.91,96.44,96.326,2.87016446]
[1644623112229,185.91,96.42,96.285,2.87016446]
[1644623112430,14.87,96.41,96.324,48.36960814]
[1644623112629,15.5806,96.39,96.271,2.87016446]
[1644623112830,14.87,96.38,96.272,5.189]
[1644623113030,24.84,96.38,96.29,5.189]
[1644623113233,2.38366791,96.379,96.323,1.89e-05]
[1644623113432,7.57266791,96.379,96.323,1.89e-05]
[1644623113651,15.5847,96.37,96.323,1.89e-05]
[1644623113854,14.87,96.36,96.323,1.89e-05]
[1644623114052,5.189,96.359,96.323,1.89e-05]
[1644623114253,7.57266791,96.359,96.323,1.89e-05]
[1644623114652,5.189,96.359,96.323,1.89e-05]
[1644623114854,2.38366791,96.358,96.323,1.89e-05]
[1644623115055,5.189,96.357,96.323,1.89e-05]
[1644623115252,14.87,96.36,96.323,1.89e-05]
[1644623115454,2.38366791,96.358,96.323,1.89e-05]
[1644623115655,15.5871,96.35,96.231,5.189]
[1644623115856,14.87,96.34,96.22,5.192]
[1644623116072,200.78,96.34,96.22,5.192]
[1644623116254,5.192,96.339,96.192,2.87016446]
[1644623116458,34.23693486,96.339,96.193,5.192]
[1644623116654,34.13650461,96.338,96.193,5.192]
[1644623116857,44.04405951,96.337,96.22,34.63398679]
[1644623117155,185.91,96.33,96.22,34.63398679]
[1644623117355,14.87,96.32,96.22,34.63398679]
[1644623117557,42.93204686,96.309,96.22,34.63398679]
[1644623117757,14.87,96.3,96.2,1.42661065]
[1644623117959,5.194,96.299,96.196,1.42661065]
[1644623118157,185.91,96.29,96.193,5.192]
[1644623118361,21.42871783,96.299,96.193,5.192]
[1644623118362,185.91,96.27,96.193,5.192]
[1644623118557,200.78,96.26,96.193,5.192]
[1644623118757,14.87,96.25,96.181,0.94658652]
[1644623119660,5.196,96.249,96.181,0.94658652]
[1644623119862,37.93035004,96.249,96.182,40.49542005]
[1644623120860,2.38366791,96.248,96.181,0.94658652]
[1644623121068,7.57966791,96.248,96.136,113.0]
[1644623121261,7.57966791,96.248,96.138,5.197]
[1644623121465,2.38366791,96.247,96.136,113.0]
[1644623121662,5.197,96.246,96.136,113.0]
[1644623121961,5.197,96.246,96.137,46.89535168]
[1644623122162,2.38366791,96.245,96.137,46.89535168]
[1644623122362,5.197,96.244,96.136,113.0]
[1644623122562,14.87,96.23,96.104,5.197]
[1644623122762,5.199,96.229,96.104,5.197]
[1644623123161,7.58266791,96.229,96.104,5.197]
[1644623123363,41.81681295,96.228,96.105,40.67331968]
[1644623123563,5.199,96.227,96.109,113.0]
[1644623124165,5.199,96.227,96.11,2.38366791]
[1644623124364,4.632,96.227,96.111,5.199]
[1644623124764,4.632,96.227,96.11,5.199]
[1644623125164,2.38366791,96.226,96.11,5.199]
[1644623125367,5.199,96.225,96.12,0.024]
[1644623125567,14.87,96.21,96.12,0.024]
[1644623125765,39.39506792,96.209,96.12,0.024]
[1644623126068,41.77873583,96.209,96.12,0.024]